fUSD/lending_fUSD_20240503
["ID","MTS","AMOUNT","RATE_DAILY","PERIOD"]
[325352926,1714747840374,-650.71,0.00043835,30]
[325352927,1714747840384,-1148.3,0.00043835,30]
[325352928,1714747840393,-584.86573858,0.00043835,30]
[325352929,1714747840402,-500.0,0.00043835,30]
[325352930,1714747840411,-500.0,0.00043835,30]
[325352931,1714747840421,-500.0,0.00043835,30]
[325352932,1714747840429,-711.89,0.00043835,30]
[325352933,1714747840438,-500.0,0.00043835,30]
[325352934,1714747840447,-500.0,0.00043835,30]
[325352935,1714747840457,-500.0,0.00043835,30]
[325352936,1714747840466,-1681.55,0.00043835,30]
[325352937,1714747840474,-500.0,0.00043835,30]
[325352938,1714747840483,-500.0,0.00043835,30]
[325352939,1714747840492,-500.0,0.00043835,30]
[325352940,1714747840501,-500.0,0.00043835,30]
[325352941,1714747840511,-599.78,0.00043835,30]
[325352942,1714747840520,-500.0,0.00043835,30]
[325352943,1714747840529,-500.0,0.00043835,30]
[325352944,1714747840538,-1044.27,0.00043835,30]
[325352945,1714747840547,-947.89,0.00043835,30]
[325352947,1714747840556,-500.0,0.00043835,30]
[325352949,1714747840566,-671.46,0.00043835,30]
[325352951,1714747840576,-1112.03,0.00043835,30]
[325352953,1714747840587,-500.0,0.00043835,30]
[325352955,1714747840600,-505.66484348,0.00043835,30]
[325352957,1714747840609,-500.0,0.00043835,30]
[325352959,1714747840619,-183.74114708,0.00043835,30]
[325352960,1714747840631,-500.0,0.00043835,30]
[325352961,1714747840641,-500.0,0.00043835,30]
[325352962,1714747840652,-500.0,0.00043835,30]
[325352963,1714747840661,-1474.55,0.00043835,30]
[325352964,1714747840670,-500.0,0.00043835,30]
[325352965,1714747840680,-547.68,0.00043835,30]
[325352966,1714747840690,-500.0,0.00043835,30]
[325352967,1714747840700,-500.0,0.00043835,30]
[325352968,1714747840711,-648.92,0.00043835,30]
[325352969,1714747840721,-500.0,0.00043835,30]
[325352970,1714747840731,-595.1,0.00043835,30]
[325352971,1714747840740,-750.0,0.00043835,30]
[325352972,1714747840750,-468.44198713,0.00043835,30]
[325352973,1714747840760,-500.0,0.00043835,30]
[325352974,1714747840770,-500.0,0.00043835,30]
[325352975,1714747840780,-846.92,0.00043835,30]
[325352976,1714747840790,-994.42,0.00043835,30]
[325352977,1714747840800,-500.0,0.00043835,30]
[325352978,1714747840811,-500.0,0.00043835,30]
[325352979,1714747840821,-500.0,0.00043835,30]
[325352980,1714747840831,-500.0,0.00043835,30]
[325352981,1714747840840,-916.56,0.00043835,30]
[325352982,1714747840850,-979.42,0.00043835,30]
[325352983,1714747840860,-500.0,0.00043835,30]
[325352984,1714747840870,-720.22,0.00043835,30]
[325352985,1714747840883,-502.06479447,0.00043835,30]
[325352986,1714747840893,-500.0,0.00043835,30]
[325352987,1714747840902,-500.0,0.00043835,30]
[325352988,1714747840912,-500.0,0.00043835,30]
[325352989,1714747840922,-1561.53,0.00043835,30]
[325352990,1714747840931,-689.09,0.00043835,30]
[325352991,1714747840941,-514.90588838,0.00043835,30]
[325352992,1714747840951,-500.0,0.00043835,30]
[325352993,1714747840961,-500.0,0.00043835,30]
[325352994,1714747840971,-500.0,0.00043835,30]
[325352995,1714747840981,-500.0,0.00043835,30]
[325352996,1714747840991,-500.0,0.00043835,30]
[325352997,1714747841000,-500.0,0.00043835,30]
[325352998,1714747841011,-544.46,0.00043835,30]
[325352999,1714747841020,-500.0,0.00043835,30]
[325353000,1714747841031,-500.0,0.00043835,30]
[325353001,1714747841040,-511.53288083,0.00043835,30]
[325353002,1714747841050,-500.0,0.00043835,30]
[325353003,1714747841059,-500.0,0.00043835,30]
[325353004,1714747841069,-1560.84,0.00043835,30]
[325353005,1714747841080,-759.43,0.00043835,30]
[325353006,1714747841090,-800.35,0.00043835,30]
[325353007,1714747841100,-1538.68,0.00043835,30]
[325353008,1714747841110,-1088.77,0.00043835,30]
[325353009,1714747841120,-500.0,0.00043835,30]
[325353010,1714747841132,-500.0,0.00043835,30]
[325353011,1714747841141,-1406.82,0.00043835,30]
[325353012,1714747841151,-500.0,0.00043835,30]
[325353013,1714747841161,-500.0,0.00043835,30]
[325353014,1714747841171,-1198.11,0.00043835,30]
[325353016,1714747841180,-500.0,0.00043835,30]
[325353017,1714747841190,-155.14972805,0.00043835,30]
[325353018,1714747841203,-500.0,0.00043835,30]
[325353019,1714747841214,-182.19374214,0.00043835,30]
[325353020,1714747841225,-500.0,0.00043835,30]
[325353021,1714747841235,-500.0,0.00043835,30]
[325353022,1714747841245,-500.0,0.00043835,30]
[325353023,1714747841255,-500.0,0.00043835,30]
[325353024,1714747841266,-500.0,0.00043835,30]
[325353025,1714747841276,-519.31979992,0.00043835,30]
[325353026,1714747841285,-500.0,0.00043835,30]
[325353027,1714747841295,-509.42,0.00043835,30]
[325353028,1714747841306,-500.0,0.00043835,30]
[325353029,1714747841315,-512.43254948,0.00043835,30]
[325353030,1714747841325,-744.79,0.00043835,30]
[325353031,1714747841335,-896.33,0.00043835,30]
[325353032,1714747841345,-500.0,0.00043835,30]
[325353033,1714747841355,-500.0,0.00043835,30]
[325353034,1714747841366,-500.0,0.00043835,30]
[325353035,1714747841378,-500.0,0.00043835,30]
[325353036,1714747841388,-1037.24,0.00043835,30]
[325353037,1714747841399,-174.13534457,0.00043835,30]
[325353038,1714747841408,-500.0,0.00043835,30]
[325353039,1714747841418,-500.0,0.00043835,30]
[325353040,1714747841428,-1255.27,0.00043835,30]
[325353041,1714747841438,-785.12,0.00043835,30]
[325353042,1714747841448,-500.0,0.00043835,30]
[325353043,1714747841457,-492.05054297,0.00043835,30]
[325353044,1714747841466,-1088.9,0.00043835,30]
[325353045,1714747841476,-500.0,0.00043835,30]
[325353046,1714747841486,-444.53942936,0.00043835,30]
[325353047,1714747841496,-1392.45,0.00043835,30]
[325353048,1714747841506,-500.0,0.00043835,30]
[325353049,1714747841515,-1051.69,0.00043835,30]
[325353050,1714747841526,-500.0,0.00043835,30]
[325353051,1714747841536,-500.0,0.00043835,30]
[325353052,1714747841547,-500.0,0.00043835,30]
[325353053,1714747841556,-500.0,0.00043835,30]
[325353054,1714747841566,-500.0,0.00043835,30]
[325353055,1714747841576,-500.0,0.00043835,30]
[325353056,1714747841588,-500.0,0.00043835,30]
[325353057,1714747841597,-782.98,0.00043835,30]
[325353058,1714747841607,-1008.32,0.00043835,30]
[325353059,1714747841617,-1930.55,0.00043835,30]
[325353060,1714747841628,-500.0,0.00043835,30]
[325353061,1714747841641,-500.0,0.00043835,30]
[325353062,1714747841652,-500.0,0.00043835,30]
[325353063,1714747841662,-1120.06,0.00043835,30]
[325353064,1714747841671,-500.0,0.00043835,30]
[325353065,1714747841682,-500.0,0.00043835,30]
[325353066,1714747841691,-1793.77,0.00043835,30]
[325353067,1714747841702,-500.0,0.00043835,30]
[325353068,1714747841712,-500.0,0.00043835,30]
[325353069,1714747841723,-500.0,0.00043835,30]
[325353070,1714747841734,-500.0,0.00043835,30]
[325353071,1714747841744,-626.17,0.00043835,30]
[325353072,1714747841754,-882.7,0.00043835,30]
[325353073,1714747841764,-872.24,0.00043835,30]
[325353074,1714747841774,-500.0,0.00043835,30]
[325353075,1714747841785,-756.66,0.00043835,30]
[325353076,1714747841796,-1458.86,0.00043835,30]
[325353077,1714747841806,-500.0,0.00043835,30]
[325353078,1714747841816,-1321.55,0.00043835,30]
[325353079,1714747841826,-1481.16,0.00043835,30]
[325353080,1714747841837,-500.0,0.00043835,30]
[325353081,1714747841848,-500.0,0.00043835,30]
[325353082,1714747841858,-500.0,0.00043835,30]
[325353083,1714747841869,-500.0,0.00043835,30]
[325353084,1714747841880,-910.12,0.00043835,30]
[325353085,1714747841890,-986.17,0.00043835,30]
[325353086,1714747841901,-502.0909909,0.00043835,30]
[325353087,1714747841911,-1461.28,0.00043835,30]
[325353088,1714747841921,-500.0,0.00043835,30]
[325353089,1714747841931,-1306.4,0.00043835,30]
[325353090,1714747841943,-1682.56,0.00043835,30]
[325353091,1714747841953,-758.93,0.00043835,30]
[325353092,1714747841963,-500.0,0.00043835,30]
[325353093,1714747841973,-2548.02,0.00043835,30]
[325353094,1714747841983,-1967.22,0.00043835,30]
[325353095,1714747841993,-500.0,0.00043835,30]
[325353096,1714747842004,-1449.07,0.00043835,30]
[325353097,1714747842014,-500.0,0.00043835,30]
[325353098,1714747842024,-500.0,0.00043835,30]
[325353099,1714747842035,-979.38,0.00043835,30]
[325353100,1714747842046,-500.0,0.00043835,30]
[325353101,1714747842057,-500.0,0.00043835,32]
[325353102,1714747842067,-1528.69,0.00043835,30]
[325353103,1714747842077,-500.0,0.00043835,30]
[325353104,1714747842087,-697.03,0.00043835,30]
[325353105,1714747842097,-500.0,0.00043835,30]
[325353106,1714747842108,-500.0,0.00043835,30]
[325353107,1714747842118,-500.0,0.00043835,30]
[325353108,1714747842129,-921.07,0.00043835,30]
[325353109,1714747842139,-2736.58,0.00043835,30]
[325353110,1714747842148,-970.43,0.00043835,30]
[325353111,1714747842158,-1501.93,0.00043835,30]
[325353112,1714747842168,-500.0,0.00043835,30]
[325353113,1714747842178,-1066.46,0.00043835,30]
[325353114,1714747842187,-910.59,0.00043835,30]
[325353115,1714747842197,-1329.23,0.00043835,30]
[325353116,1714747842207,-500.0,0.00043835,30]
[325353117,1714747842217,-980.0,0.00043835,30]
[325353118,1714747842228,-500.0,0.00043835,30]
[325353119,1714747842238,-500.0,0.00043835,30]
[325353120,1714747842248,-2530.63,0.00043835,30]
[325353121,1714747842258,-1541.98,0.00043835,30]
[325353122,1714747842267,-500.0,0.00043835,30]
[325353123,1714747842277,-500.0,0.00043835,30]
[325353124,1714747842287,-559.30061422,0.00043835,30]
[325353125,1714747842297,-503.21584926,0.00043835,30]
[325353126,1714747842307,-1288.22,0.00043835,30]
[325353127,1714747842316,-500.0,0.00043835,30]
[325353128,1714747842326,-500.0,0.00043835,30]
[325353129,1714747842336,-2271.01,0.00043835,30]
[325353130,1714747842346,-500.0,0.00043835,30]
[325353131,1714747842356,-1323.28,0.00043835,30]
[325353132,1714747842366,-500.0,0.00043835,30]
[325353133,1714747842377,-1318.27,0.00043835,30]
[325353134,1714747842387,-500.0,0.00043835,30]
[325353135,1714747842396,-531.89,0.00043835,30]
[325353136,1714747842406,-586.01047765,0.00043835,30]
[325353137,1714747842416,-527.85,0.00043835,30]
[325353138,1714747842425,-1303.81,0.00043835,30]
[325353139,1714747842435,-500.0,0.00043835,30]
[325353140,1714747842445,-2687.94,0.00043835,30]
[325353141,1714747842455,-500.0,0.00043835,30]
[325353142,1714747842465,-2388.87,0.00043835,30]
[325353143,1714747842475,-500.0,0.00043835,30]
[325353144,1714747842485,-1320.33,0.00043835,30]
[325353145,1714747842495,-571.41,0.00043835,30]
[325353146,1714747842505,-500.0,0.00043835,30]
[325353147,1714747842516,-500.0,0.00043835,30]
[325353148,1714747842526,-516.75697493,0.00043835,30]
[325353149,1714747842535,-1120.92,0.00043835,30]
[325353150,1714747842545,-2131.93,0.00043835,30]
[325353151,1714747842554,-1137.94,0.00043835,30]
[325353152,1714747842564,-500.0,0.00043835,30]
[325353153,1714747842573,-500.0,0.00043835,30]
[325353154,1714747842583,-500.0,0.00043835,30]
[325353155,1714747842595,-509.22458388,0.00043835,30]
[325353156,1714747842604,-1793.16,0.00043835,30]
[325353157,1714747842614,-500.0,0.00043835,30]
[325353158,1714747842624,-1698.98,0.00043835,30]
[325353159,1714747842636,-509.45961404,0.00043835,30]
[325353160,1714747842647,-1604.54,0.00043835,30]
[325353161,1714747842657,-500.0,0.00043835,30]
[325353162,1714747842667,-698.34,0.00043835,30]
[325353163,1714747842678,-500.0,0.00043835,30]
[325353164,1714747842688,-500.0,0.00043835,30]
[325353165,1714747842698,-1631.53,0.00043835,30]
[325353166,1714747842708,-720.86,0.00043835,30]
[325353167,1714747842718,-500.0,0.00043835,30]
[325353168,1714747842728,-500.0,0.00043835,30]
[325353169,1714747842738,-500.0,0.00043835,30]
[325353170,1714747842748,-500.0,0.00043835,30]
[325353171,1714747842758,-1005.47,0.00043835,30]
[325353172,1714747842767,-500.0,0.00043835,30]
[325353173,1714747842777,-500.0,0.00043835,30]
[325353174,1714747842787,-1336.68,0.00043835,30]
[325353175,1714747842797,-500.0,0.00043835,30]
[325353176,1714747842808,-500.0,0.00043835,30]
[325353177,1714747842817,-500.0,0.00043835,30]
[325353178,1714747842827,-1933.67,0.00043835,30]
[325353179,1714747842837,-500.0,0.00043835,30]
[325353180,1714747842847,-500.0,0.00043835,30]
[325353181,1714747842858,-412.86934525,0.00043835,30]
[325353182,1714747842868,-2454.22,0.00043835,2]
[325353183,1714747842878,-500.0,0.00043835,30]
[325353184,1714747842888,-922.7,0.00043835,30]
[325353185,1714747842899,-500.0,0.00043835,30]
[325353186,1714747842908,-1535.33,0.00043835,30]
[325353187,1714747842919,-500.0,0.00043835,30]
[325353188,1714747842930,-509.45802165,0.00043835,30]
[325353189,1714747842940,-631.37,0.00043835,30]
[325353190,1714747842951,-500.0,0.00043835,30]
[325353191,1714747842962,-500.0,0.00043835,30]
[325353192,1714747842971,-958.58,0.00043835,30]
[325353193,1714747842981,-802.71,0.00043835,30]
[325353194,1714747842991,-2158.13,0.00043835,30]
[325353195,1714747843000,-500.0,0.00043835,30]
[325353196,1714747843010,-1190.09,0.00043835,30]
[325353197,1714747843020,-500.0,0.00043835,30]
[325353198,1714747843031,-1092.67,0.00043835,30]
[325353199,1714747843041,-500.0,0.00043835,30]
[325353200,1714747843052,-1249.57,0.00043835,30]
[325353201,1714747843063,-500.0,0.00043835,30]
[325353202,1714747843074,-1468.95,0.00043835,30]
[325353203,1714747843084,-765.59,0.00043835,30]
[325353204,1714747843392,-500.0,0.00043835,30]
[325353205,1714747843412,-704.6,0.00043835,30]
[325353206,1714747843422,-500.0,0.00043835,30]
[325353207,1714747843431,-1088.36,0.00043835,30]
[325353208,1714747843442,-1396.72,0.00043835,30]
[325353209,1714747843452,-1967.07,0.00043835,30]
[325353210,1714747843462,-952.37,0.00043835,30]
[325353211,1714747843471,-603.12,0.00043835,30]
[325353212,1714747843481,-1030.24,0.00043835,30]
[325353213,1714747843491,-500.0,0.00043835,30]
[325353214,1714747843501,-500.0,0.00043835,30]
[325353215,1714747843511,-2552.86,0.00043835,30]
[325353216,1714747843521,-537.89,0.00043835,30]
[325353217,1714747843531,-1706.42,0.00043835,30]
[325353218,1714747843541,-500.0,0.00043835,30]
[325353219,1714747843551,-529.66248452,0.00043835,30]
[325353220,1714747843561,-1429.06,0.00043835,30]
[325353221,1714747843572,-500.0,0.00043835,30]
[325353224,1714747843586,-1597.59,0.00043835,30]
[325353227,1714747843605,-500.0,0.00043835,30]
[325353231,1714747843625,-1372.1,0.00043835,30]
[325353234,1714747843639,-2112.48,0.00043835,30]
[325353237,1714747843650,-500.0,0.00043835,30]
[325353240,1714747843660,-445.19949121,0.00043835,30]
[325353242,1714747843670,-500.0,0.00043835,30]
[325353243,1714747843680,-618.06,0.00043835,30]
[325353244,1714747843690,-500.0,0.00043835,30]
[325353245,1714747843700,-500.0,0.00043835,30]
[325353246,1714747843717,-500.0,0.00043835,30]
[325353247,1714747843733,-760.0,0.00043835,30]
[325353248,1714747843744,-3613.93,0.00043835,30]
[325353249,1714747843755,-500.0,0.00043835,30]
[325353250,1714747843765,-1274.89,0.00043835,30]
[325353251,1714747843776,-500.0,0.00043835,30]
[325353252,1714747843786,-1119.18,0.00043835,30]
[325353254,1714747843798,-615.81,0.00043835,30]
[325353257,1714747843809,-568.1,0.00043835,30]
[325353259,1714747843820,-2141.4,0.00043835,30]
[325353261,1714747843831,-1100.07,0.00043835,30]
[325353263,1714747843841,-1529.13,0.00043835,30]
[325353265,1714747843852,-1059.6,0.00043835,30]
[325353266,1714747843863,-1452.76,0.00043835,30]
[325353267,1714747843874,-1470.22,0.00043835,30]
[325353268,1714747843894,-500.0,0.00043835,30]
[325353269,1714747843904,-500.0,0.00043835,30]
[325353270,1714747843915,-569.26,0.00043835,30]
[325353271,1714747843926,-500.0,0.00043835,30]
[325353272,1714747843937,-688.61,0.00043835,30]
[325353273,1714747843948,-1127.62,0.00043835,30]
[325353274,1714747843959,-2944.87,0.00043835,30]
[325353275,1714747843970,-500.0,0.00043835,30]
[325353276,1714747843979,-2616.26,0.00043835,30]
[325353277,1714747843989,-500.0,0.00043835,30]
[325353278,1714747843999,-1305.25,0.00043835,30]
[325353279,1714747844009,-338.62928712,0.00043835,30]
[325353280,1714747844019,-500.0,0.00043835,30]
[325353281,1714747844030,-500.0,0.00043835,30]
[325353282,1714747844040,-500.0,0.00043835,30]
[325353283,1714747844050,-500.0,0.00043835,30]
[325353284,1714747844060,-584.44,0.00043835,30]
[325353285,1714747844070,-551.03,0.00043835,30]
[325353286,1714747844080,-500.0,0.00043835,30]
[325353287,1714747844090,-500.0,0.00043835,30]
[325353288,1714747844100,-627.83,0.00043835,30]
[325353289,1714747844110,-461.2056567,0.00043835,30]
[325353290,1714747844120,-1301.59,0.00043835,30]
[325353291,1714747844132,-500.0,0.00043835,30]
[325353292,1714747844142,-669.39,0.00043835,30]
[325353293,1714747844152,-500.0,0.00043835,30]
[325353294,1714747844161,-744.8,0.00043835,30]
[325353295,1714747844172,-500.0,0.00043835,30]
[325353296,1714747844182,-1608.25,0.00043835,30]
[325353297,1714747844192,-1156.22,0.00043835,30]
[325353298,1714747844202,-756.33,0.00043835,30]
[325353299,1714747844212,-552.58,0.00043835,30]
[325353300,1714747844222,-695.47,0.00043835,30]
[325353301,1714747844233,-1130.73,0.00043835,30]
[325353302,1714747844243,-500.0,0.00043835,120]
[325353303,1714747844252,-500.0,0.00043835,30]
[325353304,1714747844263,-680.76,0.00043835,30]
[325353305,1714747844272,-1168.38,0.00043835,30]
[325353306,1714747844282,-1142.61,0.00043835,30]
[325353307,1714747844292,-500.0,0.00043835,30]
[325353308,1714747844302,-669.54,0.00043835,30]
[325353309,1714747844312,-1284.51,0.00043835,30]
[325353310,1714747844323,-2086.34,0.00043835,30]
[325353311,1714747844333,-500.0,0.00043835,30]
[325353312,1714747844343,-500.0,0.00043835,30]
[325353313,1714747844359,-900.85,0.00043835,30]
[325353314,1714747844373,-238.41954329,0.00043835,30]
[325353315,1714747844384,-1681.99,0.00043835,30]
[325353316,1714747844396,-754.17,0.00043835,30]
[325353317,1714747844407,-500.0,0.00043835,30]
[325353318,1714747844418,-1493.27,0.00043835,30]
[325353319,1714747844429,-500.0,0.00043835,30]
[325353320,1714747844440,-715.99,0.00043835,30]
[325353321,1714747844450,-464.30674116,0.00043835,30]
[325353322,1714747844460,-4620.46,0.00043835,30]
[325353323,1714747844471,-492.99692533,0.00043835,30]
[325353325,1714747844482,-3376.85,0.00043835,30]
[325353327,1714747844493,-2739.01,0.00043835,30]
[325353328,1714747844503,-719.77,0.00043835,30]
[325353329,1714747844514,-500.0,0.00043835,30]
[325353330,1714747844524,-500.0,0.00043835,30]
[325353331,1714747844535,-1929.61,0.00043835,30]
[325353332,1714747844545,-500.0,0.00043835,30]
[325353333,1714747844556,-1414.48,0.00043835,30]
[325353334,1714747844566,-1622.87,0.00043835,30]
[325353335,1714747844576,-1052.19,0.00043835,30]
[325353336,1714747844589,-500.49,0.00043835,30]
[325353337,1714747844599,-618.05,0.00043835,30]
[325353338,1714747844610,-32696.77,0.00043835,30]
[325353339,1714747844620,-762.7,0.00043835,30]
[325353340,1714747844635,-1812.5,0.00043835,30]
[325353341,1714747844644,-976.31,0.00043835,30]
[325353342,1714747844655,-500.0,0.00043835,30]
[325353343,1714747844665,-500.0,0.00043835,30]
[325353344,1714747844675,-1944.53,0.00043835,30]
[325353345,1714747844686,-1440.52,0.00043835,30]
[325353346,1714747844697,-500.0,0.00043835,30]
[325353347,1714747844708,-677.15,0.00043835,30]
[325353348,1714747844720,-500.0,0.00043835,30]
[325353349,1714747844730,-500.0,0.00043835,30]
[325353350,1714747844740,-2565.75,0.00043835,30]
[325353351,1714747844750,-1100.29,0.00043835,30]
[325353352,1714747844761,-590.51,0.00043835,30]
[325353353,1714747844771,-500.0,0.00043835,30]
[325353354,1714747844781,-1354.81,0.00043835,30]
[325353355,1714747844792,-1097.83,0.00043835,30]
[325353356,1714747844802,-500.0,0.00043835,30]
[325353357,1714747844812,-500.0,0.00043835,30]
[325353358,1714747844822,-500.0,0.00043835,30]
[325353359,1714747844832,-828.20811394,0.00043835,30]
[325353360,1714747844884,-77.51188606,0.00043835,30]
[325353361,1714747844894,-541.95811394,0.00043835,30]
[325353362,1714747844906,-33.79188606,0.00043835,30]
[325353363,1714747844916,-221.32610402,0.00043835,30]
[325353364,1714747844929,-1558.61389598,0.00043835,30]
[325353365,1714747844939,-1070.94,0.00043835,30]
[325353366,1714747844949,-607.16146038,0.00043835,30]
[325353367,1714747845762,-2077.44853962,0.00043835,30]
[325353368,1714747845772,-500.0,0.00043835,30]
[325353369,1714747845783,-681.75,0.00043835,30]
[325353370,1714747845792,-693.28,0.00043835,30]
[325353371,1714747845802,-506.28,0.00043835,30]
[325353372,1714747845812,-639.82,0.00043835,30]
[325353373,1714747845821,-1282.3,0.00043835,30]
[325353374,1714747845831,-500.0,0.00043835,30]
[325353375,1714747845840,-500.0,0.00043835,30]
[325353376,1714747845850,-500.0,0.00043835,30]
[325353377,1714747845859,-907.99,0.00043835,30]
[325353378,1714747846064,-793.08,0.00043835,30]
[325353379,1714747846075,-546.55,0.00043835,30]
[325353380,1714747846085,-500.0,0.00043835,30]
[325353381,1714747846094,-500.0,0.00043835,30]
[325353382,1714747846103,-950.07,0.00043835,30]
[325353383,1714747846112,-813.34,0.00043835,30]
[325353384,1714747846121,-500.0,0.00043835,30]
[325353385,1714747846132,-4334.59,0.00043835,30]
[325353386,1714747846141,-3064.39,0.00043835,30]
[325353387,1714747846151,-500.0,0.00043835,30]
[325353388,1714747846160,-1587.52,0.00043835,30]
[325353389,1714747846171,-500.0,0.00043835,30]
[325353390,1714747846181,-1552.51,0.00043835,30]
[325353391,1714747846191,-1319.05,0.00043835,30]
[325353392,1714747846200,-1767.24,0.00043835,30]
[325353393,1714747846209,-500.0,0.00043835,30]
[325353394,1714747846218,-1001.43,0.00043835,30]
[325353395,1714747846228,-500.0,0.00043835,30]
[325353396,1714747846237,-3126.83,0.00043835,30]
[325353397,1714747846246,-974.99,0.00043835,30]
[325353398,1714747846255,-500.0,0.00043835,30]
[325353399,1714747846265,-821.44,0.00043835,30]
[325353400,1714747846274,-500.0,0.00043835,30]
[325353401,1714747846284,-667.75,0.00043835,30]
[325353402,1714747846293,-550.28,0.00043835,30]
[325353403,1714747846303,-500.0,0.00043835,30]
[325353404,1714747846313,-1011.18,0.00043835,30]
[325353405,1714747846323,-708.42,0.00043835,30]
[325353406,1714747846332,-500.0,0.00043835,30]
[325353407,1714747846341,-500.0,0.00043835,30]
[325353408,1714747846351,-1449.13,0.00043835,30]
[325353409,1714747846360,-500.0,0.00043835,30]
[325353410,1714747846370,-500.0,0.00043835,30]
[325353411,1714747846380,-500.0,0.00043835,30]
[325353412,1714747846389,-500.0,0.00043835,30]
[325353413,1714747846399,-500.0,0.00043835,30]
[325353414,1714747846408,-716.12,0.00043835,30]
[325353415,1714747846418,-1531.54,0.00043835,30]
[325353416,1714747846427,-500.0,0.00043835,30]
[325353417,1714747846436,-550.63,0.00043835,30]
[325353418,1714747846445,-1289.94,0.00043835,30]
[325353419,1714747846455,-1148.59,0.00043835,30]
[325353420,1714747846465,-1212.31,0.00043835,30]
[325353421,1714747846478,-500.0,0.00043835,30]
[325353422,1714747846488,-500.0,0.00043835,30]
[325353423,1714747846498,-533.26,0.00043835,30]
[325353424,1714747846508,-500.0,0.00043835,30]
[325353425,1714747846518,-422.20569812,0.00043835,30]
[325353426,1714747846528,-500.0,0.00043835,30]
[325353427,1714747846537,-500.0,0.00043835,30]
[325353428,1714747846547,-986.22,0.00043835,30]
[325353429,1714747846556,-500.0,0.00043835,30]
[325353431,1714747846566,-853.09,0.00043835,30]
[325353434,1714747846575,-818.2,0.00043835,30]
[325353437,1714747846586,-500.0,0.00043835,30]
[325353440,1714747846603,-803.81,0.00043835,30]
[325353444,1714747846613,-500.0,0.00043835,30]
[325353447,1714747846623,-1668.76,0.00043835,30]
[325353450,1714747846635,-2035.47,0.00043835,30]
[325353452,1714747846644,-500.0,0.00043835,30]
[325353455,1714747846654,-500.0,0.00043835,30]
[325353459,1714747846663,-1267.26,0.00043835,30]
[325353461,1714747846676,-500.0,0.00043835,30]
[325353463,1714747846687,-500.0,0.00043835,30]
[325353465,1714747846697,-500.0,0.00043835,30]
[325353468,1714747846707,-500.0,0.00043835,30]
[325353470,1714747846718,-1646.63,0.00043835,30]
[325353471,1714747846727,-1482.56,0.00043835,30]
[325353473,1714747846736,-500.0,0.00043835,30]
[325353475,1714747846747,-3504.5,0.00043835,30]
[325353477,1714747846757,-775.83,0.00043835,30]
[325353479,1714747846767,-500.0,0.00043835,30]
[325353481,1714747846778,-516.68,0.00043835,30]
[325353483,1714747846787,-500.0,0.00043835,30]
[325353485,1714747846797,-500.0,0.00043835,30]
[325353487,1714747846808,-500.0,0.00043835,30]
[325353489,1714747846821,-500.0,0.00043835,30]
[325353491,1714747846831,-500.0,0.00043835,30]
[325353493,1714747846842,-500.0,0.00043835,30]